lending/lending_fUSD_20250917
["ID","MTS","AMOUNT","RATE_DAILY","PERIOD"]
[385955708,1758151834075,-150.0,0.00021598,2]
[385955709,1758151834086,-150.0,0.00021598,2]
[385955710,1758151834095,-150.0,0.00021598,2]
[385955711,1758151834105,-150.0,0.00021598,2]
[385955712,1758151834114,-152.25054493,0.00021598,2]
[385955713,1758151834123,-500.0,0.00021598,2]
[385955714,1758151834133,-150.0,0.00021598,2]
[385955715,1758151834147,-500.0,0.00021598,2]
[385955716,1758151834156,-425.20895966,0.00021598,2]
[385955717,1758151834166,-500.0,0.00021598,2]
[385955718,1758151834175,-500.0,0.00021598,2]
[385955719,1758151834185,-2000.0,0.000216,2]
[385955720,1758151834195,-487.59,0.00021617,2]
[385955721,1758151834204,-1000.0,0.00021621,2]
[385955722,1758151834214,-500.0,0.00021621,2]
[385955723,1758151834224,-1000.0,0.00021623,2]
[385955724,1758151834234,-1000.0,0.00021623,2]
[385955725,1758151834244,-1000.0,0.00021623,2]
[385955726,1758151834253,-502.8322223,0.00021623,2]
[385955727,1758151834262,-1000.0,0.00021623,2]
[385955728,1758151834272,-150.0,0.00021647,4]
[385955729,1758151834282,-500.0,0.00021668,2]
[385955730,1758151834292,-500.0,0.00021668,2]
[385955731,1758151834301,-500.0,0.00021668,2]
[385955732,1758151834311,-500.0,0.00021668,2]
[385955733,1758151834320,-1859.0,0.00021668,2]
[385955734,1758151834330,-150.0,0.00021668,2]
[385955735,1758151834341,-500.0,0.00021668,2]
[385955736,1758151834350,-500.0,0.00021668,2]
[385955737,1758151834360,-150.0,0.00021668,2]
[385955738,1758151834369,-500.0,0.00021668,2]
[385955739,1758151834378,-152.07398961,0.00021668,2]
[385955740,1758151834388,-150.0,0.00021668,2]
[385955741,1758151834398,-500.0,0.00021668,2]
[385955742,1758151834408,-152.70771985,0.00021668,2]
[385955743,1758151834418,-604.15,0.00021706,2]
[385955744,1758151834427,-151.0,0.00021713,2]
[385955745,1758151834437,-202.37592505,0.00021716,2]
[385955746,1758151834447,-500.0,0.00021716,2]
[385955747,1758151834456,-196.84769561,0.00021716,2]
[385955748,1758151834465,-474.22354888,0.00021716,2]
[385955749,1758151834475,-657534.20619585,0.00021716,3]
[385955750,1758151834484,-15744.97598269,0.00021716,2]
[385955751,1758151834494,-160.0,0.00021716,3]
[385955752,1758151834503,-191581.2247,0.00021717,2]
[385955753,1758151834513,-1798.89821896,0.00021717,2]
[385955754,1758151834522,-513.84551171,0.00021717,2]
[385955755,1758151834531,-225.978309,0.00021717,2]
[385955756,1758151834540,-151.0,0.00021717,2]
[385955757,1758151834550,-225.978309,0.00021717,2]
[385955758,1758151834560,-225.978309,0.00021717,2]
[385955759,1758151834569,-225.978309,0.00021717,2]
[385955760,1758151834579,-151.0,0.00021717,2]
[385955761,1758151834589,-151.0,0.00021717,2]
[385955762,1758151834598,-5000.0,0.0002173,2]
[385955763,1758151834607,-7000.0,0.00021732,2]
[385955764,1758151834623,-7000.0,0.00021732,2]
[385955765,1758151834636,-7000.0,0.00021732,2]
[385955766,1758151834646,-7000.0,0.00021732,2]
[385955767,1758151834655,-382.0,0.00021754,2]
[385955768,1758151834664,-513.8455117,0.00021767,2]
[385955769,1758151834673,-4734.525714,0.00021787,2]
[385955770,1758151834683,-5281.0023405,0.00021799,2]
[385955771,1758151834693,-933.0708954,0.00021799,2]
[385955772,1758151834702,-166.27,0.00021799,2]
[385955773,1758151834712,-154.61,0.00021807,2]
[385955774,1758151834721,-150.0,0.00021812,2]
[385955775,1758151834731,-1000.0,0.00021816,2]
[385955776,1758151834740,-169.53,0.00021816,2]
[385955777,1758151834749,-213.18994792,0.00021817,3]
[385955778,1758151834759,-8524.7402,0.00021817,2]
[385955779,1758151834768,-151.81498266,0.00021817,2]
[385955780,1758151834777,-150.0,0.00021817,2]
[385955781,1758151834787,-500.0,0.00021817,2]
[385955782,1758151834796,-500.0,0.00021817,2]
[385955783,1758151834805,-150.0,0.00021817,2]
[385955784,1758151834815,-150.0,0.00021817,2]
[385955785,1758151834831,-500.0,0.00021817,2]
[385955786,1758151834841,-150.0,0.00021817,2]
[385955787,1758151834851,-200.75598379,0.00021817,2]
[385955788,1758151834860,-150.0,0.00021817,2]
[385955789,1758151834869,-154.052538,0.00021817,2]
[385955790,1758151834879,-205.944107,0.00021817,2]
[385955791,1758151834888,-205.944107,0.00021817,2]
[385955792,1758151834897,-205.944107,0.00021817,2]
[385955793,1758151834908,-151.946989,0.00021817,2]
[385955794,1758151834917,-205.944107,0.00021817,2]
[385955795,1758151834927,-151.0,0.00021817,2]
[385955796,1758151834936,-1454.746195,0.00021817,2]
[385955797,1758151834946,-151.0,0.00021817,2]
[385955798,1758151834955,-151.0,0.00021817,2]
[385955799,1758151834964,-1454.746195,0.00021817,2]
[385955800,1758151834973,-151.0,0.00021817,2]
[385955801,1758151834983,-151.0,0.00021817,2]
[385955802,1758151834992,-154.761852,0.00021817,2]
[385955803,1758151835001,-1454.746195,0.00021817,2]
[385955804,1758151835011,-151.0,0.00021817,2]
[385955805,1758151835019,-1454.746195,0.00021817,2]
[385955806,1758151835029,-151.0,0.00021817,2]
[385955807,1758151835038,-151.0,0.00021817,2]
[385955808,1758151835047,-151.0,0.00021817,2]
[385955809,1758151835056,-513.8455117,0.00021817,2]
[385955810,1758151835066,-151.0,0.00021817,2]
[385955811,1758151835075,-1077.800283,0.00021817,2]
[385955812,1758151835084,-1077.800283,0.00021817,2]
[385955813,1758151835094,-1077.800283,0.00021817,2]
[385955814,1758151835103,-1077.800283,0.00021817,2]
[385955815,1758151835113,-156.178635,0.00021817,2]
[385955816,1758151835123,-156.178635,0.00021817,2]
[385955817,1758151835133,-156.178635,0.00021817,2]
[385955818,1758151835145,-156.178635,0.00021817,2]
[385955819,1758151835154,-300.0,0.00021829,2]
[385955820,1758151835164,-300.0,0.00021829,2]
[385955821,1758151835173,-858.46714066,0.00021829,2]
[385955822,1758151835183,-214.22049228,0.0002183,2]
[385955823,1758151835197,-151.0,0.0002183,2]
[385955824,1758151835207,-197.39908,0.0002183,2]
[385955825,1758151835217,-171.919545,0.0002183,2]
[385955826,1758151835228,-167.205311,0.0002183,2]
[385955827,1758151835238,-167.205311,0.0002183,2]
[385955828,1758151835247,-167.205311,0.0002183,2]
[385955829,1758151835256,-167.205311,0.0002183,2]
[385955830,1758151835265,-151.0,0.0002183,2]
[385955831,1758151835274,-151.0,0.0002183,2]
[385955832,1758151835284,-152.535368,0.0002183,2]
[385955833,1758151835293,-151.0,0.0002183,2]
[385955834,1758151835302,-151.0,0.0002183,2]
[385955835,1758151835379,-273.991423,0.0002183,2]
[385955836,1758151835388,-151.0,0.0002183,2]
[385955837,1758151835397,-151.0,0.0002183,2]
[385955838,1758151835406,-155.977246,0.0002183,2]
[385955839,1758151835415,-151.86767,0.0002183,2]
[385955840,1758151835425,-152.047617,0.0002183,2]
[385955841,1758151835434,-151.0,0.0002183,2]
[385955842,1758151835444,-151.0,0.0002183,2]
[385955843,1758151835453,-151.0,0.0002183,2]
[385955844,1758151835463,-151.0,0.0002183,2]
[385955845,1758151835472,-151.0,0.0002183,2]
[385955846,1758151835482,-151.0,0.0002183,2]
[385955847,1758151835491,-151.0,0.0002183,2]
[385955848,1758151835501,-151.0,0.0002183,2]
[385955849,1758151835510,-151.0,0.0002183,2]
[385955850,1758151835520,-151.0,0.0002183,2]
[385955851,1758151835530,-155.339703,0.0002183,2]
[385955852,1758151835539,-157.509876,0.0002183,2]
[385955853,1758151835549,-151.0,0.0002183,2]
[385955854,1758151835558,-151.96168,0.0002183,2]
[385955855,1758151835568,-151.0,0.0002183,2]
[385955856,1758151835578,-151.0,0.0002183,2]
[385955857,1758151835590,-151.0,0.0002183,2]
[385955858,1758151835599,-151.0,0.0002183,2]
[385955859,1758151835609,-153.353779,0.0002183,2]
[385955860,1758151835619,-151.0,0.0002183,2]
[385955861,1758151835628,-151.0,0.0002183,2]
[385955862,1758151835639,-151.0,0.0002183,2]
[385955863,1758151835648,-151.0,0.0002183,2]
[385955864,1758151835657,-151.0,0.0002183,2]
[385955865,1758151835667,-151.0,0.0002183,2]
[385955866,1758151835676,-151.0,0.0002183,2]
[385955867,1758151835686,-151.0,0.0002183,2]
[385955868,1758151835695,-151.0,0.0002183,2]
[385955869,1758151835706,-152.703956,0.0002183,2]
[385955870,1758151835715,-151.0,0.0002183,2]
[385955871,1758151835725,-151.0,0.0002183,2]
[385955872,1758151835734,-151.0,0.0002183,2]
[385955873,1758151835743,-151.0,0.0002183,2]
[385955874,1758151835752,-151.0,0.0002183,2]
[385955875,1758151835762,-264.529928,0.0002183,2]
[385955876,1758151835771,-151.0,0.0002183,2]
[385955877,1758151835780,-151.0,0.0002183,2]
[385955878,1758151835789,-151.0,0.0002183,2]
[385955879,1758151835798,-151.0,0.0002183,2]
[385955880,1758151835807,-151.0,0.0002183,2]
[385955881,1758151835816,-151.0,0.0002183,2]
[385955882,1758151835826,-151.0,0.0002183,2]
[385955883,1758151835837,-151.0,0.0002183,2]
[385955884,1758151835846,-268.871072,0.0002183,2]
[385955885,1758151835855,-151.0,0.0002183,2]
[385955886,1758151835864,-151.0,0.0002183,2]
[385955887,1758151835874,-151.0,0.0002183,2]
[385955888,1758151835883,-152.928392,0.0002183,2]
[385955889,1758151835892,-152.287766,0.0002183,2]
[385955890,1758151835910,-151.0,0.0002183,2]
[385955891,1758151835919,-236.799801,0.0002183,2]
[385955892,1758151835929,-236.799801,0.0002183,2]
[385955893,1758151835938,-236.799801,0.0002183,2]
[385955894,1758151835947,-236.799801,0.0002183,2]
[385955895,1758151835957,-151.0,0.0002183,2]
[385955896,1758151835966,-151.0,0.0002183,2]
[385955897,1758151835975,-327.740013,0.0002183,2]
[385955898,1758151835984,-327.740013,0.0002183,2]
[385955899,1758151835993,-327.740013,0.0002183,2]
[385955900,1758151836002,-327.740013,0.0002183,2]
[385955901,1758151836012,-151.0,0.0002183,2]
[385955902,1758151836021,-151.0,0.0002183,2]
[385955903,1758151836030,-151.0,0.0002183,2]
[385955904,1758151836039,-151.0,0.0002183,2]
[385955905,1758151836048,-151.0,0.0002183,2]
[385955906,1758151836057,-151.0,0.0002183,2]
[385955907,1758151836066,-161.16006,0.0002183,2]
[385955908,1758151836075,-151.0,0.0002183,2]
[385955909,1758151836084,-151.0,0.0002183,2]
[385955910,1758151836094,-151.0,0.0002183,2]
[385955911,1758151836103,-151.0,0.0002183,2]
[385955912,1758151836112,-151.0,0.0002183,2]
[385955913,1758151836121,-151.0,0.0002183,2]
[385955914,1758151836131,-151.0,0.0002183,2]
[385955915,1758151836140,-151.0,0.0002183,2]
[385955916,1758151836152,-151.0,0.0002183,2]
[385955917,1758151836162,-151.0,0.0002183,2]
[385955918,1758151836171,-151.911303,0.0002183,2]
[385955919,1758151836180,-209.757563,0.0002183,2]
[385955920,1758151836190,-209.757563,0.0002183,2]
[385955921,1758151836199,-209.757563,0.0002183,2]
[385955922,1758151836209,-209.757563,0.0002183,2]
[385955923,1758151836220,-151.0,0.0002183,2]
[385955924,1758151836229,-151.0,0.0002183,2]
[385955925,1758151836239,-160.0,0.0002183,2]
[385955926,1758151836249,-160.0,0.0002183,2]
[385955927,1758151836257,-151.0,0.0002183,2]
[385955928,1758151836267,-160.0,0.0002183,2]
[385955929,1758151836276,-160.0,0.0002183,2]
[385955930,1758151836285,-160.0,0.0002183,2]
[385955931,1758151836294,-151.0,0.0002183,2]
[385955932,1758151836304,-151.0,0.0002183,2]
[385955933,1758151836313,-151.0,0.0002183,2]
[385955934,1758151836323,-172.763773,0.0002183,2]
[385955935,1758151836331,-151.0,0.0002183,2]
[385955936,1758151836342,-151.0,0.0002183,2]
[385955937,1758151836351,-151.0,0.0002183,2]
[385955938,1758151836361,-151.0,0.0002183,2]
[385955939,1758151836370,-151.0,0.0002183,2]
[385955940,1758151836379,-151.0,0.0002183,2]
[385955941,1758151836389,-151.0,0.0002183,2]
[385955942,1758151836398,-151.0,0.0002183,2]
[385955943,1758151836408,-155.241255,0.0002183,2]
[385955944,1758151836417,-151.0,0.0002183,2]
[385955945,1758151836427,-151.0,0.0002183,2]
[385955946,1758151836436,-151.0,0.0002183,2]
[385955947,1758151836445,-151.0,0.0002183,2]
[385955948,1758151836454,-151.0,0.0002183,2]
[385955949,1758151836463,-196.727167,0.0002183,2]
[385955950,1758151836473,-151.0,0.0002183,2]
[385955951,1758151836483,-151.0,0.0002183,2]
[385955952,1758151836492,-382.0,0.00021832,2]
[385955953,1758151836501,-150.0,0.00021836,2]
[385955954,1758151836510,-382.0,0.00021837,2]
[385955955,1758151836519,-382.0,0.0002187,2]
[385955956,1758151836528,-150.0,0.00021872,2]
[385955957,1758151836537,-150.0,0.00021872,2]
[385955958,1758151836546,-150.0,0.00021872,2]
[385955959,1758151836555,-150.0,0.00021872,2]
[385955960,1758151836564,-216.65781096,0.00021872,2]
[385955961,1758151836573,-150.0,0.00021872,2]
[385955962,1758151836583,-219.0,0.00021872,2]
[385955963,1758151836593,-500.0,0.00021872,2]
[385955964,1758151836602,-158.0,0.00021872,2]
[385955965,1758151836612,-150.00000001,0.0002189,4]
[385955966,1758151836621,-156.64771004,0.0002189,4]
[385955967,1758151836631,-150.0,0.0002189,4]
[385955968,1758151836640,-150.0,0.0002189,4]
[385955969,1758151836650,-150.0,0.0002189,4]
[385955970,1758151836659,-487.59,0.000219,2]
[385955971,1758151836668,-355.69308888,0.00021907,2]
[385955972,1758151836677,-400.0,0.00021917,2]
[385955973,1758151836687,-403.42116149,0.00021917,2]
[385955974,1758151836696,-400.0,0.00021917,2]
[385955975,1758151836705,-400.0,0.00021917,2]
[385955976,1758151836714,-400.0,0.00021917,2]
[385955977,1758151836724,-400.0,0.00021917,2]
[385955978,1758151836733,-404.34870602,0.00021917,2]
[385955979,1758151836742,-252.07383361,0.00021917,2]
[385955980,1758151836751,-306.88619006,0.00021917,2]
[385955981,1758151836760,-400.0,0.00021917,2]
[385955982,1758151836769,-400.0,0.00021917,2]
[385955983,1758151836778,-400.0,0.00021917,2]
[385955984,1758151836787,-400.0,0.00021917,2]
[385955985,1758151836797,-411.41482138,0.00021917,2]
[385955986,1758151836812,-400.0,0.00021917,2]
[385955987,1758151836821,-400.0,0.00021917,2]
[385955988,1758151836830,-400.0,0.00021917,2]
[385955989,1758151836840,-400.0,0.00021917,2]
[385955990,1758151836851,-400.0,0.00021917,2]
[385955991,1758151836861,-515.94106364,0.00021917,2]
[385955992,1758151836871,-400.0,0.00021917,2]
[385955993,1758151836881,-400.0,0.00021917,2]
[385955994,1758151836891,-400.0,0.00021917,2]
[385955995,1758151836899,-400.0,0.00021917,2]
[385955996,1758151836909,-255.0004225,0.00021917,2]
[385955997,1758151836918,-400.0,0.00021917,2]
[385955998,1758151836927,-400.0,0.00021917,2]
[385955999,1758151836936,-400.0,0.00021917,2]
[385956000,1758151836945,-400.0,0.00021917,2]
[385956001,1758151836954,-400.0,0.00021917,2]
[385956002,1758151836964,-400.0,0.00021917,2]
[385956003,1758151836973,-400.0,0.00021917,2]
[385956004,1758151836982,-400.0,0.00021917,2]
[385956005,1758151836991,-400.0,0.00021917,2]
[385956006,1758151837000,-400.0,0.00021917,2]
[385956007,1758151837009,-400.0,0.00021917,2]
[385956008,1758151837018,-400.0,0.00021917,2]
[385956009,1758151837028,-400.0,0.00021917,2]
[385956010,1758151837037,-400.0,0.00021917,2]
[385956011,1758151837046,-400.0,0.00021917,2]
[385956012,1758151837055,-400.0,0.00021917,2]
[385956013,1758151837064,-400.0,0.00021917,2]
[385956014,1758151837073,-400.0,0.00021917,2]
[385956015,1758151837083,-477.03,0.00021917,2]
[385956016,1758151837093,-400.0,0.00021917,2]
[385956017,1758151837102,-400.0,0.00021917,2]
[385956018,1758151837111,-400.0,0.00021917,2]
[385956019,1758151837120,-400.0,0.00021917,2]
[385956020,1758151837130,-400.0,0.00021917,2]
[385956021,1758151837144,-265.21719699,0.00021917,2]
[385956024,1758151837539,-1.72949676,0.00021917,2]
[385956025,1758151837549,-400.0,0.00021917,2]
[385956026,1758151837559,-91.88064566,0.00021917,2]
[385956027,1758151837571,-308.11935434,0.00021917,2]
[385956028,1758151837581,-400.0,0.00021917,2]
[385956029,1758151837591,-400.0,0.00021917,2]
[385956030,1758151837605,-400.0,0.00021917,2]
[385956031,1758151837614,-416.85768204,0.00021917,2]
[385956032,1758151837624,-413.30349321,0.00021917,2]
[385956033,1758151837633,-400.0,0.00021917,2]
[385956034,1758151837642,-500.0,0.00021917,2]
[385956035,1758151837652,-395.21329733,0.00021917,2]
[385956036,1758151837668,-4.78670267,0.00021917,2]
[385956037,1758151837677,-400.0,0.00021917,2]
[385956038,1758151837688,-400.0,0.00021917,2]
[385956039,1758151837700,-397.12691604,0.00021917,2]
[385956040,1758151837712,-2.87308396,0.00021917,2]
[385956041,1758151837722,-400.0,0.00021917,2]
[385956042,1758151837731,-254.85827877,0.00021917,2]
[385956043,1758151837740,-400.0,0.00021917,2]
[385956044,1758151837750,-400.0,0.00021917,2]
[385956045,1758151837759,-400.0,0.00021917,2]
[385956046,1758151837768,-400.0,0.00021917,2]
[385956047,1758151837778,-400.0,0.00021917,2]
[385956048,1758151837787,-400.0,0.00021917,2]
[385956049,1758151837797,-529.36,0.00021917,2]
[385956050,1758151837806,-400.0,0.00021917,2]
[385956051,1758151837816,-400.0,0.00021917,2]
[385956053,1758151837825,-400.0,0.00021917,2]
[385956055,1758151837834,-400.0,0.00021917,2]
[385956056,1758151837844,-400.0,0.00021917,2]
[385956058,1758151837854,-400.0,0.00021917,2]
[385956060,1758151837863,-400.0,0.00021917,2]
[385956062,1758151837872,-400.0,0.00021917,2]
[385956063,1758151837881,-400.0,0.00021917,2]
[385956064,1758151837890,-400.0,0.00021917,2]
[385956065,1758151837899,-400.0,0.00021917,2]
[385956066,1758151837908,-400.0,0.00021917,2]
[385956067,1758151837917,-400.0,0.00021917,2]
[385956068,1758151837927,-400.0,0.00021917,2]
[385956069,1758151837935,-400.0,0.00021917,2]
[385956071,1758151837945,-400.0,0.00021917,2]
[385956073,1758151837954,-400.0,0.00021917,2]
[385956075,1758151837963,-405.14319067,0.00021917,2]
[385956077,1758151837972,-400.0,0.00021917,2]
[385956079,1758151837981,-400.0,0.00021917,2]
[385956081,1758151837991,-400.0,0.00021917,2]
[385956084,1758151838000,-400.0,0.00021917,2]
[385956086,1758151838010,-400.0,0.00021917,2]
[385956087,1758151838019,-400.0,0.00021917,2]
[385956090,1758151838029,-400.0,0.00021917,2]
[385956092,1758151838038,-400.0,0.00021917,2]
[385956094,1758151838047,-400.0,0.00021917,2]
[385956095,1758151838056,-400.0,0.00021917,2]
[385956097,1758151838065,-400.0,0.00021917,2]
[385956099,1758151838074,-400.0,0.00021917,2]
[385956101,1758151838083,-198.753053,0.00021917,2]
[385956104,1758151838094,-500.0,0.00021917,2]
[385956106,1758151838103,-400.0,0.00021917,2]
[385956108,1758151838112,-400.0,0.00021917,2]
[385956110,1758151838121,-400.0,0.00021917,2]
[385956112,1758151838130,-400.0,0.00021917,2]
[385956114,1758151838140,-400.0,0.00021917,2]
[385956116,1758151838152,-395.86838401,0.00021917,2]
[385956118,1758151838161,-400.0,0.00021917,2]
[385956120,1758151838171,-400.0,0.00021917,2]
[385956121,1758151838180,-400.0,0.00021917,2]
[385956124,1758151838191,-155.244656,0.00021917,2]
[385956126,1758151838200,-404.32426991,0.00021917,2]
[385956128,1758151838209,-443.40457796,0.00021917,2]
[385956130,1758151838218,-26.01586982,0.00021917,2]
[385956202,1758151838924,-168.13,0.00020524,2]
[385956204,1758151838934,-7321.59598089,0.0002095,2]
[385956206,1758151838944,-373.98413018,0.00021917,2]
[385956209,1758151838954,-400.0,0.00021917,2]
[385956210,1758151838963,-400.0,0.00021917,2]
[385956211,1758151838973,-408.69811171,0.00021917,2]
[385956212,1758151838983,-400.0,0.00021917,2]
[385956213,1758151838993,-400.0,0.00021917,2]
[385956214,1758151839002,-408.04499089,0.00021917,2]
[385956215,1758151839012,-207.23055259,0.00021917,2]
[385956216,1758151839021,-400.0,0.00021917,2]
[385956217,1758151839030,-400.0,0.00021917,2]
[385956218,1758151839040,-400.0,0.00021917,2]
[385956219,1758151839049,-151.0,0.00021917,2]
[385956220,1758151839059,-151.0,0.00021917,2]
[385956221,1758151839069,-412.24,0.00021917,2]
[385956222,1758151839078,-400.0,0.00021917,2]
[385956223,1758151839090,-151.0,0.00021917,2]
[385956224,1758151839100,-500.0,0.00021917,2]
[385956225,1758151839109,-400.0,0.00021917,2]
[385956226,1758151839119,-400.0,0.00021917,2]
[385956227,1758151839129,-400.0,0.00021917,2]
[385956228,1758151839140,-400.0,0.00021917,2]
[385956229,1758151839157,-189.87,0.00021917,2]
[385956230,1758151839166,-400.0,0.00021917,2]
[385956231,1758151839176,-400.0,0.00021917,2]
[385956232,1758151839186,-400.0,0.00021917,2]
[385956233,1758151839197,-405.13795858,0.00021917,2]
[385956234,1758151839207,-400.0,0.00021917,2]
[385956235,1758151839216,-400.0,0.00021917,2]
[385956236,1758151839227,-400.0,0.00021917,2]
[385956237,1758151839237,-400.0,0.00021917,2]
[385956238,1758151839246,-400.0,0.00021917,2]
[385956239,1758151839256,-400.0,0.00021917,2]
[385956240,1758151839266,-400.0,0.00021917,2]
[385956241,1758151839276,-400.0,0.00021917,2]
[385956242,1758151839286,-400.0,0.00021917,2]
[385956243,1758151839296,-400.0,0.00021917,2]
[385956244,1758151839306,-400.0,0.00021917,2]
[385956245,1758151839315,-400.0,0.00021917,2]
[385956246,1758151839325,-400.0,0.00021917,2]
[385956247,1758151839335,-400.0,0.00021917,2]
[385956249,1758151839346,-400.0,0.00021917,2]
[385956250,1758151839356,-400.0,0.00021917,2]
[385956251,1758151839365,-400.0,0.00021917,2]
[385956252,1758151839375,-400.0,0.00021917,2]
[385956253,1758151839385,-400.0,0.00021917,2]
[385956254,1758151839395,-400.0,0.00021917,2]
[385956255,1758151839405,-151.0,0.00021917,2]
[385956256,1758151839415,-400.0,0.00021917,2]
[385956257,1758151839425,-400.0,0.00021917,2]
[385956258,1758151839438,-400.0,0.00021917,2]
[385956259,1758151839448,-400.0,0.00021917,2]
[385956260,1758151839458,-400.0,0.00021917,2]
[385956261,1758151839468,-400.0,0.00021917,2]
[385956262,1758151839478,-400.0,0.00021917,2]
[385956263,1758151839488,-400.0,0.00021917,2]
[385956264,1758151839498,-400.0,0.00021917,2]
[385956265,1758151839508,-400.0,0.00021917,2]
[385956266,1758151839518,-400.0,0.00021917,2]
[385956267,1758151839528,-400.0,0.00021917,2]
[385956268,1758151839538,-400.0,0.00021917,2]
[385956269,1758151839548,-400.0,0.00021917,2]
[385956270,1758151839558,-400.0,0.00021917,2]
[385956271,1758151839568,-400.0,0.00021917,2]
[385956272,1758151839579,-400.0,0.00021917,2]
[385956273,1758151839591,-419.2592519,0.00021917,2]
[385956274,1758151839602,-379.28151147,0.00021917,2]
[385956275,1758151839612,-400.0,0.00021917,2]
[385956276,1758151839622,-400.0,0.00021917,2]
[385956277,1758151839632,-403.13592728,0.00021917,2]
[385956278,1758151839642,-400.0,0.00021917,2]
[385956279,1758151839651,-400.0,0.00021917,2]
[385956280,1758151839662,-400.0,0.00021917,2]
[385956281,1758151839672,-400.0,0.00021917,2]
[385956282,1758151839682,-400.0,0.00021917,2]
[385956283,1758151839692,-400.0,0.00021917,2]
[385956284,1758151839702,-400.0,0.00021917,2]
[385956285,1758151839712,-400.0,0.00021917,2]
[385956286,1758151839722,-400.0,0.00021917,2]
[385956287,1758151839732,-400.0,0.00021917,2]
[385956288,1758151839742,-536.35471442,0.00021917,2]
[385956289,1758151839752,-400.0,0.00021917,2]
[385956290,1758151839762,-400.0,0.00021917,2]
[385956291,1758151839772,-400.0,0.00021917,2]
[385956292,1758151839783,-400.0,0.00021917,2]
[385956293,1758151839793,-400.0,0.00021917,2]
[385956294,1758151839803,-400.0,0.00021917,2]
[385956295,1758151839813,-400.0,0.00021917,2]
[385956296,1758151839822,-400.0,0.00021917,2]
[385956297,1758151839833,-400.0,0.00021917,2]
[385956298,1758151839845,-400.0,0.00021917,2]
[385956299,1758151839855,-400.0,0.00021917,2]
[385956300,1758151839865,-400.0,0.00021917,2]
[385956301,1758151839875,-400.0,0.00021917,2]
[385956302,1758151839885,-400.0,0.00021917,2]
[385956303,1758151839895,-400.0,0.00021917,2]
[385956304,1758151839906,-400.0,0.00021917,2]
[385956305,1758151839916,-400.0,0.00021917,2]
[385956306,1758151839926,-534.29113416,0.00021917,2]
[385956307,1758151839935,-400.0,0.00021917,2]
[385956308,1758151839945,-400.0,0.00021917,2]
[385956309,1758151839955,-266.67905318,0.00021917,2]
[385956310,1758151839991,-133.32094682,0.00021917,2]
[385956311,1758151840001,-400.0,0.00021917,2]
[385956312,1758151840011,-50.52905318,0.00021917,2]
[385956313,1758151840045,-349.47094682,0.00021917,2]
[385956314,1758151840055,-402.24640896,0.00021917,2]
[385956315,1758151840065,-400.0,0.00021917,2]
[385956316,1758151840075,-401.66639287,0.00021917,2]
[385956317,1758151840086,-400.0,0.00021917,2]
[385956318,1758151840098,-400.0,0.00021917,2]
[385956319,1758151840108,-400.0,0.00021917,2]
[385956320,1758151840118,-400.0,0.00021917,2]
[385956321,1758151840128,-400.0,0.00021917,2]